bitfinex/quotes_BTCUSD_20251205
["timestamp","ask_amount","ask_price","bid_price","bid_amount"]
[1764975561710,0.323,89283.0,89281.0,0.23521092]
[1764975561868,0.323,89283.0,89282.0,0.22400931]
[1764975562668,0.01764,89285.0,89283.0,0.22400536]
[1764975563044,0.01764,89285.0,89284.0,0.2240043]
[1764975565410,0.01864,89285.0,89284.0,0.2250043]
[1764975568024,0.001,89285.0,89284.0,0.36078361]
[1764975568239,0.001,89285.0,89284.0,0.38309258]
[1764975568395,0.001,89285.0,89284.0,0.36078361]
[1764975568597,0.001,89285.0,89284.0,0.38309258]
[1764975571046,0.001,89285.0,89284.0,0.32197361]
[1764975571252,0.001,89285.0,89284.0,0.22661717]
[1764975574194,0.001,89285.0,89284.0,0.00261287]
[1764975574402,0.22500179,89285.0,89284.0,0.00261287]
[1764975575885,0.22500179,89285.0,89284.0,0.001]
[1764975576109,0.57040179,89285.0,89284.0,0.001]
[1764975576325,0.54800179,89285.0,89284.0,0.001]
[1764975576910,0.54700179,89285.0,89284.0,0.001]
[1764975577315,0.22401182,89281.0,89280.0,0.00051852]
[1764975578476,0.54701182,89281.0,89280.0,0.00051852]
[1764975578670,0.55101182,89281.0,89280.0,0.00051852]
[1764975579014,0.57341182,89281.0,89280.0,0.00051852]
[1764975579451,0.66071688,89281.0,89280.0,0.00051852]
[1764975579655,0.92709661,89281.0,89280.0,0.00051852]
[1764975580280,0.98313566,89281.0,89280.0,0.00051852]
[1764975580517,0.96073566,89281.0,89280.0,0.00051852]
[1764975580870,0.98313566,89281.0,89280.0,0.00051852]
[1764975581759,0.96073566,89281.0,89280.0,0.00051852]
[1764975583341,0.98313566,89281.0,89280.0,0.00051852]
[1764975583615,0.96073566,89281.0,89280.0,0.00051852]
[1764975588282,0.97120859,89281.0,89280.0,0.00051852]
[1764975589470,0.86150353,89281.0,89280.0,0.00051852]
[1764975590445,0.88390353,89281.0,89280.0,0.00051852]
[1764975590868,0.86150353,89281.0,89280.0,0.00051852]
[1764975591074,0.83507155,89281.0,89280.0,0.00051852]
[1764975593106,0.59337973,89281.0,89280.0,0.00051852]
[1764975593316,0.56929,89281.0,89280.0,0.00051852]
[1764975593918,0.79330182,89281.0,89280.0,0.00051852]
[1764975594974,0.56929,89281.0,89280.0,0.22453285]
[1764975595586,0.24629,89281.0,89280.0,0.26257285]
[1764975595811,0.24629,89281.0,89280.0,0.26418572]
[1764975596335,0.004,89281.0,89280.0,0.26418572]
[1764975596540,0.323,89286.0,89284.0,0.2240042]
[1764975596743,0.323,89286.0,89285.0,0.02675]
[1764975596944,0.323,89286.0,89285.0,0.25075179]
[1764975597160,0.323,89287.0,89286.0,0.22399928]
[1764975597820,0.323,89287.0,89285.0,0.23533176]
[1764975598238,0.33419958,89289.0,89287.0,0.22399599]
[1764975598442,0.323,89289.0,89287.0,0.22399599]
[1764975598967,0.323,89289.0,89288.0,0.22399426]
[1764975599164,0.33419946,89290.0,89288.0,0.22399426]
[1764975600025,0.002,89289.0,89288.0,0.22399426]
[1764975600437,0.002,89290.0,89289.0,0.22399175]
[1764975600645,0.004,89290.0,89289.0,0.23941175]
[1764975600838,0.002,89290.0,89289.0,0.26203175]
[1764975601135,0.002,89290.0,89289.0,0.31128394]
[1764975601768,0.55817037,89297.0,89294.0,0.22397869]
[1764975602190,0.55817037,89297.0,89292.0,0.22398245]
[1764975602191,0.01119896,89294.0,89292.0,0.22398388]
[1764975602395,0.0111987,89296.0,89293.0,0.22397951]
[1764975602396,0.23517531,89296.0,89293.0,0.22397951]
[1764975602616,0.2239743,89296.0,89293.0,0.23517859]
[1764975602816,0.23517248,89297.0,89294.0,0.23517817]
[1764975603029,0.33419845,89298.0,89294.0,0.2939098]
[1764975603231,0.323,89298.0,89297.0,0.22397168]
[1764975603445,0.323,89298.0,89297.0,0.24030168]
[1764975603637,0.36481002,89301.0,89297.0,0.05032858]
[1764975603874,0.34068,89301.0,89300.0,0.01243]
[1764975604076,0.34068,89301.0,89300.0,0.02876]
[1764975604534,0.34068,89301.0,89299.0,0.22396619]
[1764975604754,0.56464245,89301.0,89298.0,0.2351673]
[1764975604955,0.01119833,89299.0,89291.0,0.23518598]
[1764975605102,0.22397221,89297.0,89294.0,0.2239781]
[1764975605283,0.23517079,89297.0,89294.0,0.01119896]
[1764975605493,0.23817079,89297.0,89294.0,0.01119896]
[1764975605713,0.01119858,89297.0,89294.0,0.22397802]
[1764975606091,0.23517031,89297.0,89294.0,0.22397802]
[1764975606296,0.23517241,89298.0,89294.0,0.01119896]
[1764975606727,0.003,89297.0,89296.0,0.22397419]
[1764975608430,0.002,89298.0,89296.0,0.22397419]
[1764975608649,0.24164399,89301.0,89298.0,0.23516523]
[1764975608843,0.25284207,89301.0,89298.0,0.23516523]
[1764975609265,0.22396469,89300.0,89298.0,0.01119845]
[1764975609667,0.02887808,89301.0,89299.0,0.22396667]
[1764975609874,0.25584027,89301.0,89298.0,0.23516743]
[1764975610290,0.25284027,89301.0,89298.0,0.23516743]
[1764975610651,0.01768,89301.0,89298.0,0.01119845]
[1764975610843,0.01968,89301.0,89298.0,0.0852341]
[1764975611047,0.01968,89301.0,89299.0,0.22396573]
[1764975611221,0.24835253,89301.0,89299.0,0.22396573]
[1764975611387,0.24164215,89301.0,89299.0,0.22396573]
[1764975611570,0.003,89300.0,89299.0,0.22396573]
[1764975611771,0.01968,89301.0,89299.0,0.30415994]
[1764975612194,0.02268,89301.0,89299.0,0.30415994]
[1764975612388,0.22396416,89300.0,89299.0,0.08019421]
[1764975612636,0.24364387,89301.0,89298.0,0.2239687]
[1764975612842,0.003,89300.0,89298.0,0.2239687]
[1764975612988,0.22396432,89300.0,89297.0,0.23517005]
[1764975613209,0.25284195,89301.0,89297.0,0.23517005]
[1764975613414,0.00471038,89300.0,89297.0,0.23517005]
[1764975613618,0.00471038,89300.0,89297.0,0.28796776]
[1764975613930,0.34568,89301.0,89300.0,0.22396416]
[1764975614261,0.57884024,89301.0,89298.0,0.23516763]
[1764975614550,0.57784024,89301.0,89298.0,0.23516763]
[1764975614754,0.57784011,89301.0,89299.0,0.22396591]
[1764975614934,0.003,89300.0,89299.0,0.22396591]
[1764975615136,0.35187808,89301.0,89299.0,0.22396591]
[1764975615432,0.35487808,89301.0,89299.0,0.22396591]
[1764975615639,0.35187808,89301.0,89299.0,0.22396591]
[1764975615837,0.0111982,89300.0,89297.0,0.28796298]
[1764975616001,0.003,89300.0,89298.0,0.22396843]
[1764975616211,0.23816431,89300.0,89297.0,0.28796298]
[1764975616877,0.23816431,89300.0,89298.0,0.22396918]
[1764975617678,0.24016431,89300.0,89297.0,0.28796779]
[1764975618026,0.22396735,89299.0,89298.0,0.07819456]
[1764975618634,0.22396667,89299.0,89298.0,0.07819456]
[1764975619551,0.22696667,89299.0,89298.0,0.07819456]
[1764975619755,0.003,89299.0,89298.0,0.34129374]
[1764975619961,0.003,89299.0,89298.0,0.26309918]
[1764975620730,0.002,89300.0,89299.0,0.22396667]
[1764975621066,0.01768,89301.0,89300.0,0.22396416]
[1764975621269,0.323,89303.0,89302.0,0.22395914]
[1764975621530,0.23517615,89295.0,89292.0,0.22398205]
[1764975621666,0.01119883,89295.0,89292.0,0.22398205]
[1764975621872,0.23517787,89295.0,89292.0,0.22398205]
[1764975622979,0.23517787,89295.0,89292.0,0.23518126]
[1764975623130,0.23518038,89294.0,89290.0,0.2351887]
[1764975623532,0.2239837,89293.0,89291.0,0.22398652]
[1764975624181,0.2239837,89293.0,89290.0,0.2351887]
[1764975624602,0.23918038,89294.0,89291.0,0.2239847]
[1764975625028,0.23718038,89294.0,89291.0,0.2239847]
[1764975625401,0.002,89293.0,89292.0,0.22398423]
[1764975625600,0.23517837,89294.0,89291.0,0.2239847]
[1764975625985,0.002,89293.0,89291.0,0.2239847]
[1764975626403,0.23517837,89294.0,89291.0,0.2239847]
[1764975626610,0.23517837,89294.0,89291.0,0.30591528]
[1764975626819,0.23717837,89294.0,89291.0,0.30591528]
[1764975627005,0.23917837,89294.0,89291.0,0.30591528]
[1764975627200,0.01119908,89293.0,89289.0,0.00161287]
[1764975627371,0.01120021,89284.0,89280.0,0.00051852]
[1764975627579,0.22401182,89281.0,89280.0,0.00051852]
[1764975628594,0.22401182,89281.0,89280.0,0.00251852]
[1764975628863,0.57665833,89281.0,89280.0,0.00051852]
[1764975629071,0.61132047,89281.0,89280.0,0.00051852]
[1764975630005,0.61132047,89281.0,89280.0,0.00351852]
[1764975630420,0.61432047,89281.0,89280.0,0.00051852]
[1764975630831,0.61732047,89281.0,89280.0,0.00051852]
[1764975631452,0.60683226,89281.0,89280.0,0.00051852]
[1764975634457,0.61730018,89281.0,89280.0,0.00051852]
[1764975634662,0.63970018,89281.0,89280.0,0.00051852]
[1764975634878,0.70222317,89281.0,89280.0,0.00051852]
[1764975637286,0.74253383,89281.0,89280.0,0.00051852]
[1764975637504,0.70222317,89281.0,89280.0,0.00051852]
[1764975637934,0.69922317,89281.0,89280.0,0.00051852]
[1764975638154,0.94151317,89281.0,89280.0,0.00051852]
[1764975638369,0.94151317,89281.0,89260.0,0.0004]
[1764975638370,0.56946202,89261.0,89260.0,0.0004]
[1764975638570,0.74341705,89261.0,89260.0,0.00079562]
[1764975639386,0.72101705,89261.0,89260.0,0.00079562]
[1764975639786,0.74541705,89261.0,89260.0,0.00079562]
[1764975640206,0.80994004,89261.0,89260.0,0.00079562]
[1764975643422,1.05223004,89261.0,89260.0,0.00079562]
[1764975643834,1.06353906,89261.0,89260.0,0.00079562]
[1764975644046,1.05223004,89261.0,89260.0,0.00079562]
[1764975645416,0.92012498,89261.0,89260.0,0.00079562]
[1764975645575,0.94252498,89261.0,89260.0,0.00079562]
[1764975652371,0.86803762,89261.0,89260.0,0.00079562]
[1764975652585,0.85760199,89261.0,89260.0,0.00079562]
[1764975653941,0.83992199,89261.0,89260.0,0.00079562]
[1764975654131,0.85760199,89261.0,89260.0,0.00079562]
[1764975654739,0.83992199,89261.0,89260.0,0.00079562]
[1764975654970,0.85760199,89261.0,89260.0,0.00079562]
[1764975655502,0.97775637,89261.0,89260.0,0.00079562]
[1764975655884,0.86805131,89261.0,89260.0,0.00079562]
[1764975657137,0.85037131,89261.0,89260.0,0.00079562]
[1764975657338,0.86805131,89261.0,89260.0,0.00079562]
[1764975658902,0.86605131,89261.0,89260.0,0.00079562]
[1764975659416,0.87846852,89261.0,89260.0,0.00079562]
[1764975659621,0.92071606,89261.0,89260.0,0.00079562]
[1764975659823,0.89061885,89261.0,89260.0,0.00079562]
[1764975660062,0.88961885,89261.0,89260.0,0.00079562]
[1764975660275,0.89161885,89261.0,89260.0,0.00079562]
[1764975660656,0.88961885,89261.0,89260.0,0.00079562]
[1764975661100,0.89161885,89261.0,89260.0,0.00079562]
[1764975661304,0.91401885,89261.0,89260.0,0.00079562]
[1764975661505,0.97654184,89261.0,89260.0,0.00079562]
[1764975661988,1.01667145,89261.0,89260.0,0.00079562]
[1764975662346,0.97654184,89261.0,89260.0,0.00079562]
[1764975665282,1.03673626,89261.0,89260.0,0.00079562]
[1764975665497,0.97654184,89261.0,89260.0,0.00079562]
[1764975665863,0.98102854,89261.0,89260.0,0.00079562]
[1764975666289,0.98107409,89261.0,89260.0,0.00079562]
[1764975666816,0.22408712,89251.0,89250.0,0.0004]
[1764975667019,0.345893,89251.0,89250.0,0.00051857]
[1764975667364,0.97370599,89251.0,89250.0,0.00051857]
[1764975667590,0.97851895,89251.0,89250.0,0.00051857]
[1764975667991,0.97951895,89251.0,89250.0,0.00051857]
[1764975668992,0.97851895,89251.0,89250.0,0.00051857]
[1764975669198,1.03899824,89251.0,89250.0,0.00051857]
[1764975669587,0.98151895,89251.0,89250.0,0.00051857]
[1764975669791,1.04199824,89251.0,89250.0,0.00051857]
[1764975670342,0.98151895,89251.0,89250.0,0.00051857]
[1764975670550,1.04199824,89251.0,89250.0,0.00051857]
[1764975672147,0.98151895,89251.0,89250.0,0.00051857]
[1764975673039,0.30903522,89241.0,89240.0,0.0004]
[1764975673244,0.94907006,89241.0,89240.0,0.0004]
[1764975673658,0.95388302,89241.0,89240.0,0.0004]
[1764975673797,0.71159302,89241.0,89240.0,0.0004]
[1764975675144,0.71659302,89241.0,89240.0,0.0004]
[1764975675348,0.79673863,89241.0,89240.0,0.0004]
[1764975675741,0.79973863,89241.0,89240.0,0.0004]
[1764975677355,0.8600811,89241.0,89240.0,0.0004]
[1764975678100,0.79973863,89241.0,89240.0,0.0004]
[1764975679244,1.04202863,89241.0,89240.0,0.0004]
[1764975682457,0.95988302,89241.0,89240.0,0.0004]
[1764975686442,1.00007822,89241.0,89240.0,0.0004]
[1764975686961,1.00005107,89241.0,89240.0,0.0004]
[1764975688192,0.95985587,89241.0,89240.0,0.0004]
[1764975689058,0.94217587,89241.0,89240.0,0.0004]
[1764975689262,1.06556902,89241.0,89240.0,0.0004]
[1764975690919,1.10578116,89241.0,89240.0,0.0004]
[1764975691193,1.06556902,89241.0,89240.0,0.0004]
[1764975691419,1.10578906,89241.0,89240.0,0.0004]
[1764975692175,1.06556902,89241.0,89240.0,0.0004]
[1764975697351,1.12591149,89241.0,89240.0,0.0004]
[1764975697729,1.06556902,89241.0,89240.0,0.0004]
[1764975697953,0.63206034,89231.0,89230.0,0.00481296]
[1764975698190,0.73143907,89231.0,89230.0,0.00490164]
[1764975698507,0.73634071,89231.0,89230.0,0.00490164]
[1764975699827,0.73734071,89231.0,89230.0,0.00490164]
[1764975700256,0.73934071,89231.0,89230.0,0.00490164]
[1764975700454,0.73834071,89231.0,89230.0,0.00490164]
[1764975700655,0.73834071,89231.0,89220.0,0.0004]
[1764975700656,0.63208546,89221.0,89220.0,0.0004]
[1764975700852,0.94909315,89221.0,89220.0,0.0004]
[1764975701361,0.95358222,89221.0,89220.0,0.0004]
[1764975701564,0.77173851,89221.0,89220.0,0.0004]
[1764975701822,0.71129222,89221.0,89220.0,0.0004]
[1764975702115,0.81700537,89221.0,89220.0,0.0004]
[1764975702352,0.81701751,89221.0,89220.0,0.0004]
[1764975703080,0.81901751,89221.0,89220.0,0.0004]
[1764975703281,0.82001751,89221.0,89220.0,0.0004]
[1764975704405,1.06230751,89221.0,89220.0,0.0004]
[1764975704606,1.06530751,89221.0,89220.0,0.0004]
[1764975706183,0.63211059,89211.0,89210.0,0.0004]
[1764975706384,0.68444438,89211.0,89210.0,0.0004]
[1764975706788,0.68893382,89211.0,89210.0,0.0004]
[1764975707451,0.69093382,89211.0,89210.0,0.0004]
[1764975707695,0.73115543,89211.0,89210.0,0.0004]
[1764975707877,0.80063888,89211.0,89210.0,0.0004]
[1764975708295,0.84185003,89211.0,89210.0,0.0004]
[1764975709199,0.79963888,89211.0,89210.0,0.0004]
[1764975709397,0.79863888,89211.0,89210.0,0.0004]
[1764975709604,0.80163888,89211.0,89210.0,0.0004]
[1764975709844,0.80463888,89211.0,89210.0,0.0004]
[1764975711647,0.80463888,89211.0,89210.0,0.00100712]
[1764975711848,1.04692888,89211.0,89210.0,0.00100712]
[1764975720861,1.04692888,89211.0,89210.0,0.00112562]
[1764975725861,0.93722382,89211.0,89210.0,0.00112562]
[1764975726070,0.91482382,89211.0,89210.0,0.00112562]
[1764975726319,0.95503497,89211.0,89210.0,0.00112562]
[1764975726943,0.95203497,89211.0,89210.0,0.00112562]
[1764975727097,0.95403497,89211.0,89210.0,0.00112562]
[1764975727305,1.02352888,89211.0,89210.0,0.00112562]
[1764975728103,1.02052888,89211.0,89210.0,0.00112562]
[1764975728576,1.00484888,89211.0,89210.0,0.00112562]
[1764975728708,1.02252888,89211.0,89210.0,0.00112562]
[1764975728910,1.00484888,89211.0,89210.0,0.00112562]
[1764975729155,1.02252888,89211.0,89210.0,0.00112562]
[1764975732621,1.04492888,89211.0,89210.0,0.00112562]
[1764975734422,1.04492888,89211.0,89200.0,0.0004]
[1764975734423,0.63213572,89201.0,89200.0,0.0004]
[1764975734621,1.03247266,89201.0,89200.0,0.0004]
[1764975735595,1.06614539,89201.0,89200.0,0.0004]
[1764975735794,1.06814539,89201.0,89200.0,0.0004]
[1764975736356,1.06614539,89201.0,89200.0,0.0004]
[1764975736727,1.07014539,89201.0,89200.0,0.0004]
[1764975740590,1.07014539,89201.0,89200.0,0.00070362]
[1764975752478,1.1306135,89201.0,89200.0,0.00070362]
[1764975754996,0.86182925,89201.0,89200.0,0.00070362]
[1764975755203,0.87950925,89201.0,89200.0,0.00070362]
[1764975755389,0.58674138,89201.0,89200.0,0.00070362]
[1764975755619,0.53882925,89201.0,89200.0,0.00070362]
[1764975755825,0.87950925,89201.0,89200.0,0.00070362]
[1764975756410,0.87550925,89201.0,89200.0,0.00070362]
[1764975756819,0.87750925,89201.0,89200.0,0.00070362]
[1764975768610,0.86704153,89201.0,89200.0,0.00070362]
[1764975775595,0.87753114,89201.0,89200.0,0.00070362]
[1764975776116,0.86704153,89201.0,89200.0,0.00070362]
[1764975776315,0.65331862,89201.0,89200.0,0.00070362]
[1764975776524,0.86704153,89201.0,89200.0,0.00070362]
[1764975778700,0.84936153,89201.0,89200.0,0.00070362]
[1764975778909,0.86704153,89201.0,89200.0,0.00070362]
[1764975779100,0.84936153,89201.0,89200.0,0.00070362]
[1764975779301,0.86704153,89201.0,89200.0,0.00070362]
[1764975779804,0.30175153,89201.0,89200.0,0.00231649]
[1764975780060,0.60267055,89201.0,89200.0,0.00070362]
[1764975780207,0.69340954,89201.0,89200.0,0.00070362]
[1764975780646,0.69140954,89201.0,89200.0,0.00070362]
[1764975780862,0.78416466,89201.0,89200.0,0.00070362]
[1764975781063,0.75393253,89201.0,89200.0,0.00070362]
[1764975781678,0.75593253,89201.0,89200.0,0.00070362]
[1764975781853,0.54723787,89191.0,89190.0,0.0004]
[1764975782051,0.79971121,89191.0,89190.0,0.00045318]
[1764975782278,0.73923389,89191.0,89190.0,0.00045318]
[1764975782504,0.74372453,89191.0,89190.0,0.00045318]
[1764975782834,0.74372453,89191.0,89170.0,0.0004]
[1764975782835,0.63221115,89171.0,89170.0,0.0004]
[1764975783059,0.68456039,89171.0,89170.0,0.00079502]
[1764975783271,0.72486862,89171.0,89170.0,0.00079502]
[1764975783501,0.6890519,89171.0,89170.0,0.00079502]
[1764975783711,0.79486569,89171.0,89170.0,0.00079502]
[1764975783934,0.75459314,89171.0,89170.0,0.00079502]
[1764975784379,0.75459314,89171.0,89170.0,1e-08]
[1764975784599,0.75659314,89171.0,89170.0,1e-08]
[1764975784821,3.95337986,89171.0,89170.0,1e-08]
[1764975785040,3.9151623,89171.0,89170.0,1e-08]
[1764975785243,0.9352623,89171.0,89170.0,1e-08]
[1764975785468,0.9412623,89171.0,89170.0,1e-08]
[1764975785903,0.9382623,89171.0,89170.0,1e-08]
[1764975786109,0.98243248,89171.0,89170.0,1e-08]
[1764975786312,0.97843248,89171.0,89170.0,1e-08]
[1764975786543,1.00082852,89171.0,89170.0,1e-08]
[1764975786757,0.99782852,89171.0,89170.0,1e-08]
[1764975787000,1.00082852,89171.0,89170.0,1e-08]
[1764975787221,0.96065834,89171.0,89170.0,1e-08]
[1764975787432,0.95765834,89171.0,89170.0,1e-08]
[1764975787633,0.95765834,89171.0,89170.0,0.00091123]
[1764975787854,5.77995834,89171.0,89170.0,0.00091123]
[1764975788275,5.78395834,89171.0,89170.0,0.00091123]
[1764975788502,5.77695834,89171.0,89170.0,1e-08]
[1764975788704,5.77695834,89171.0,89160.0,1e-08]
[1764975788705,0.63223631,89161.0,89160.0,1e-08]
[1764975788909,0.63223631,89161.0,89160.0,0.00011877]
[1764975788910,0.68455471,89161.0,89160.0,0.00011877]
[1764975789121,0.71461991,89161.0,89160.0,0.00011877]
[1764975789324,0.71461756,89161.0,89160.0,0.00011877]
[1764975789537,0.76934135,89161.0,89160.0,0.00011877]
[1764975789744,0.7392785,89161.0,89160.0,0.00011877]
[1764975790160,0.7255985,89161.0,89160.0,0.00011877]
[1764975790367,0.61553411,89161.0,89160.0,0.00011877]
[1764975790575,0.61378936,89161.0,89160.0,0.00011877]
[1764975790787,0.59138936,89161.0,89160.0,0.00011877]
[1764975791000,0.61378936,89161.0,89160.0,0.00011877]
[1764975791209,0.63982522,89161.0,89160.0,0.00011877]
[1764975791418,0.61178936,89161.0,89160.0,0.00011877]
[1764975791842,0.72249442,89161.0,89160.0,0.00011877]
[1764975792250,0.72349442,89161.0,89160.0,0.00011877]
[1764975792453,0.72798608,89161.0,89160.0,0.00011877]
[1764975793300,0.72998608,89161.0,89160.0,0.00011877]
[1764975793538,0.62028102,89161.0,89160.0,0.00011877]
[1764975793978,0.59788102,89161.0,89160.0,0.00011877]
[1764975794220,0.01049166,89161.0,89160.0,0.0125926]
[1764975794440,0.01049166,89161.0,89160.0,0.03086547]
[1764975794706,0.006,89161.0,89160.0,0.01420547]
[1764975794935,0.006,89161.0,89160.0,0.05581547]
[1764975795149,0.329,89161.0,89160.0,0.00203547]
[1764975795371,0.006,89161.0,89160.0,0.04364547]
[1764975795590,0.002,89161.0,89160.0,0.04364547]
[1764975795823,0.002,89161.0,89160.0,0.04764547]
[1764975796031,0.002,89161.0,89160.0,0.02269547]
[1764975796239,0.002,89161.0,89160.0,0.14634531]
[1764975796668,0.03367651,89177.0,89176.0,0.22427558]
[1764975796882,0.0112134,89179.0,89176.0,0.00161287]
[1764975797105,0.33421327,89180.0,89176.0,0.00161287]
[1764975797318,0.0112134,89179.0,89176.0,0.00161287]
[1764975797530,0.22427125,89178.0,89176.0,0.11000838]
[1764975797737,0.22427125,89178.0,89176.0,0.00161287]
[1764975797968,0.002,89177.0,89176.0,0.00261287]
[1764975798188,0.002,89177.0,89176.0,0.04058184]
[1764975798661,0.002,89177.0,89176.0,0.06653184]
[1764975798921,0.002,89177.0,89176.0,0.09919496]
[1764975799158,0.002,89177.0,89176.0,0.10019496]
[1764975799404,0.22427227,89178.0,89176.0,0.10019496]
[1764975799636,0.22427227,89178.0,89177.0,0.01666]
[1764975799873,0.22527227,89178.0,89177.0,0.01666]
[1764975800521,0.22427227,89178.0,89177.0,0.01666]
[1764975800771,0.22527227,89178.0,89177.0,0.01666]
[1764975800940,0.22627227,89178.0,89177.0,0.01666]
[1764975801561,0.22627227,89178.0,89177.0,0.05134443]
[1764975802820,0.22627227,89178.0,89177.0,0.01666]
[1764975803024,0.22627227,89178.0,89177.0,0.02883]
[1764975805894,0.22427307,89177.0,89176.0,0.00411287]
[1764975807026,0.22527307,89177.0,89176.0,0.00411287]
[1764975810948,0.001,89177.0,89176.0,0.00411287]
[1764975811175,0.001,89177.0,89176.0,0.22838845]
[1764975811707,0.001,89177.0,89176.0,0.29230742]
[1764975811908,0.22527307,89177.0,89176.0,0.00411287]
[1764975812479,0.22527307,89177.0,89176.0,0.0025]
[1764975812659,0.56595307,89177.0,89176.0,0.0025]
[1764975812864,0.59001752,89177.0,89176.0,0.0025]
[1764975813060,0.77441557,89177.0,89176.0,0.0025]
[1764975813298,1.04954995,89177.0,89176.0,0.0025]
[1764975813498,1.04854995,89177.0,89176.0,0.0025]
[1764975813703,1.07862851,89177.0,89176.0,0.0025]
[1764975813875,1.02814995,89177.0,89176.0,0.0025]
[1764975814297,1.02914995,89177.0,89176.0,0.0025]
[1764975814860,1.03114995,89177.0,89176.0,0.0025]
[1764975815068,1.01346995,89177.0,89176.0,0.0025]
[1764975815264,0.92148489,89177.0,89176.0,0.0025]
[1764975815608,0.91104051,89177.0,89176.0,0.0025]
[1764975816208,0.92148716,89177.0,89176.0,0.0025]
[1764975816343,0.94388716,89177.0,89176.0,0.0025]
[1764975817196,0.96866923,89177.0,89176.0,0.0025]
[1764975817334,0.95822258,89177.0,89176.0,0.0025]
[1764975818150,0.96867612,89177.0,89176.0,0.0025]
[1764975819111,0.96868107,89177.0,89176.0,0.0025]
[1764975820855,0.99108107,89177.0,89176.0,0.0025]
[1764975821067,1.02116021,89177.0,89176.0,0.0025]
[1764975821197,0.99108107,89177.0,89176.0,0.0025]
[1764975822481,1.05360406,89177.0,89176.0,0.0025]
[1764975823148,1.05360406,89177.0,89176.0,1e-08]
[1764975823506,1.05360406,89177.0,89162.0,0.00024305]
[1764975823507,0.63223127,89163.0,89162.0,0.00024305]
[1764975823825,0.77257065,89163.0,89162.0,0.00024305]
[1764975824005,0.83287198,89163.0,89162.0,0.00024305]
[1764975824211,0.77706266,89163.0,89162.0,0.00024305]
[1764975824813,1.01935266,89163.0,89162.0,0.00024305]
[1764975825897,1.02335266,89163.0,89162.0,0.00024305]
[1764975826457,1.02635266,89163.0,89162.0,0.00024305]
[1764975828874,1.06649406,89163.0,89162.0,0.00024305]
[1764975829311,1.02635266,89163.0,89162.0,0.00024305]
[1764975829609,1.06649406,89163.0,89162.0,0.00024305]
[1764975829853,1.05603557,89163.0,89162.0,0.00024305]
[1764975829968,1.06648713,89163.0,89162.0,0.00024305]
[1764975830369,1.02634573,89163.0,89162.0,1e-08]
[1764975832688,1.08650317,89163.0,89162.0,1e-08]
[1764975833278,1.08649461,89163.0,89162.0,1e-08]
[1764975833483,1.02633717,89163.0,89162.0,1e-08]
[1764975834490,1.02793786,89163.0,89162.0,1e-08]
[1764975836109,0.28683631,89161.0,89160.0,1e-08]
[1764975836322,5.66674376,89161.0,89160.0,1e-08]
[1764975836854,5.6712363,89161.0,89160.0,1e-08]
[1764975838333,5.6772363,89161.0,89160.0,1e-08]
[1764975839133,5.6742363,89161.0,89160.0,1e-08]
[1764975839334,5.78594136,89161.0,89160.0,0.00100001]
[1764975839691,6.03123136,89161.0,89160.0,0.00100001]
[1764975840255,1.29943136,89161.0,89160.0,0.00100001]
[1764975840451,1.28463136,89161.0,89160.0,0.00100001]
[1764975840653,1.73623136,89161.0,89160.0,0.00100001]
[1764975841447,1.73623136,89161.0,89160.0,1e-08]
[1764975841647,0.63228663,89141.0,89140.0,0.0004]
[1764975841921,0.99227629,89141.0,89140.0,0.0004]
[1764975842334,1.00336289,89141.0,89140.0,0.0010686]
[1764975842864,0.99227629,89141.0,89140.0,0.0010686]
[1764975843102,0.99427629,89141.0,89140.0,0.0010686]
[1764975843300,0.91557744,89141.0,89140.0,0.0010686]
[1764975843466,0.93329744,89141.0,89140.0,0.0010686]
[1764975844517,0.93529744,89141.0,89140.0,0.0010686]
[1764975844718,0.54741399,89121.0,89120.0,0.0004]
[1764975844918,0.54741399,89121.0,89120.0,0.00213172]
[1764975844919,0.56513399,89121.0,89120.0,0.00213172]
[1764975845117,0.58753003,89121.0,89120.0,0.00213172]
[1764975845323,0.58753003,89121.0,89120.0,0.00273975]
[1764975845701,0.58753003,89121.0,89120.0,0.00112688]
[1764975846124,0.67562647,89121.0,89120.0,0.00112688]
[1764975846337,0.72410037,89121.0,89120.0,0.00112688]
[1764975847042,0.63600393,89121.0,89120.0,0.00112688]
[1764975847891,0.69449442,89121.0,89120.0,0.00112688]
[1764975848230,0.71857182,89121.0,89120.0,0.00112688]
[1764975848440,0.71856928,89121.0,89120.0,0.00112688]
[1764975848752,0.61193003,89121.0,89120.0,0.00112688]
[1764975849122,0.61360477,89121.0,89120.0,0.00112688]
[1764975849573,0.58953003,89121.0,89120.0,0.00112688]
[1764975851065,0.002,89121.0,89120.0,0.01932975]
[1764975851262,0.01121956,89130.0,89126.0,0.01122007]
[1764975851463,0.01772,89129.0,89128.0,0.01121981]
[1764975851664,0.02409647,89140.0,89134.0,0.03913906]
[1764975851876,0.55858974,89138.0,89137.0,0.02792]
[1764975852092,0.25968621,89138.0,89137.0,0.02792]
[1764975852330,0.22437875,89135.0,89134.0,0.00161287]
[1764975852536,0.01772,89139.0,89137.0,0.01659]
[1764975852740,0.01772,89139.0,89134.0,0.02575287]
[1764975852741,0.323,89135.0,89134.0,0.00161287]
[1764975853157,0.54737875,89135.0,89134.0,0.01820287]
[1764975853523,0.323,89135.0,89134.0,0.24258413]
[1764975853904,0.323,89136.0,89135.0,0.22437864]
[1764975854254,0.24309119,89138.0,89135.0,0.22437864]
[1764975854255,0.001,89138.0,89136.0,0.24096623]
[1764975854465,0.01772,89139.0,89137.0,0.27643371]
[1764975854654,0.23556666,89147.0,89143.0,0.01121793]
[1764975854795,0.22435588,89145.0,89142.0,0.2243604]
[1764975854997,0.01121805,89142.0,89138.0,0.00161287]
[1764975855213,0.22436868,89139.0,89138.0,0.00161287]
[1764975855644,0.01121918,89133.0,89128.0,0.22439603]
[1764975855846,0.22438905,89131.0,89128.0,0.23561584]
[1764975856050,0.22439133,89130.0,89127.0,0.01121994]
[1764975856262,0.22441399,89121.0,89115.0,0.22442829]
[1764975856528,0.22441399,89121.0,89113.0,0.0112217]
[1764975856729,0.22441399,89121.0,89117.0,0.0112212]
[1764975856880,0.22441399,89121.0,89116.0,0.01122132]
[1764975857205,0.01772,89125.0,89120.0,0.01710885]
[1764975857434,0.01772,89125.0,89122.0,0.22440907]
[1764975857585,0.24212392,89125.0,89124.0,0.0004864]
[1764975858730,0.24212392,89125.0,89124.0,0.0024864]
[1764975859438,0.24312392,89125.0,89124.0,0.0024864]
[1764975860206,0.24312392,89125.0,89124.0,0.05120974]
[1764975860561,0.24312392,89125.0,89124.0,0.0024864]
[1764975861699,0.24472461,89125.0,89124.0,0.0024864]
[1764975863816,0.00260069,89125.0,89124.0,0.26923571]
[1764975864076,0.02032069,89125.0,89124.0,0.04482927]